[Event "VIII Open Semana Santa 2024"]
[Site "San Vicente del Raspeig"]
[Date "2024.04.01"]
[Round "9.19"]
[White "Ilinca, Felix-Antonio"]
[Black "Macias Pino, Diego"]
[Result "1/2-1/2"]
[ECO "B90"]
[WhiteElo "2373"]
[BlackElo "2477"]
[Annotator "RC"]
[PlyCount "159"]
[EventDate "2024.03.27"]
[EventType "swiss"]
[EventCountry "ESP"]
[SourceTitle "playchess.com"]
[Source "ChessBase"]
[SourceQuality "1"]
[TimeControl "5400+30"]

1. e4 {[%emt 0:03:26]} c5 {[%emt 1:31:00]} 2. Nf3 {[%emt 0:00:07]} d6 {[%emt 0:00:00]} 3. d4 {[%emt 0:00:06]} cxd4 {[%emt 0:00:00]} 4. Nxd4 {[%emt 0:00:06]} Nf6 {[%emt 0:00:00]} 5. Nc3 {[%emt 0:00:09]} a6 {[%emt 0:00:00]} 6. Rg1 {[%emt 0:01:02]} e5 {[%emt 0:00:00]} 7. Nb3 {[%emt 0:00:08]} h5 {[%emt 0:00:00]} 8. Be3 {[%emt 0:00:51]} Be6 {[%emt 0:00:00]} 9. h3 {[%emt 0:01:34]} Nbd7 {[%emt 0:00:00]} 10. Qd2 {[%emt 0:01:59]} Rc8 {[%emt 0:00:00]} 11. O-O-O {[%emt 0:02:25]} b5 {[%emt 0:00:00]} 12. f4 {[%emt 0:08:22]} h4 {[%emt 0:00:00]} 13. Bd3 {[%emt 0:05:45]} Qc7 {[%emt 0:00:00]} 14. Kb1 {[%emt 0:04:32]} Nb6 {[%emt 0:00:00]} 15. Qf2 {[%emt 0:12:12]} Nc4 {[%emt 0:00:00]} 16. Bxc4 {[%emt 0:01:15]} Bxc4 {[%emt 0:00:00]} 17. Bb6 {[%emt 0:14:34]} Qb8 {[%emt 0:00:00]} 18. Na5 {[%emt 0:02:33]} b4 {[%emt 0:00:00]} 19. fxe5 {[%emt 0:05:15]} dxe5 {[%emt 0:00:00]} 20. Nd5 {[%emt 0:01:16]} Bxd5 {[%emt 0:00:00]} 21. exd5 {[%emt 0:00:12]} Nd7 {[%emt 0:00:00]} 22. Be3 {[%emt 0:03:06]} Bd6 {[%emt 0:00:00]} 23. g3 {[%emt 0:03:24]} hxg3 {[%emt 0:00:00]} 24. Rxg3 {[%emt 0:00:29]} Rh7 {[%emt 0:00:00]} 25. Qf5 {[%emt 0:05:56]} Nf8 {[%emt 0:00:00]} 26. Rg4 {[%emt 0:03:15]} g6 {[%emt 0:00:00]} 27. Qf6 {[%emt 0:01:38]} Nd7 {[%emt 0:00:00]} 28. Qf3 {[%emt 0:00:23]} Qb5 {[%emt 0:00:59]} 29. Nc6 {[%emt 0:00:41]} Rc7 {[%emt 0:01:08]} 30. Qf2 {[%emt 0:02:34]} Rxh3 {[%emt 0:04:51]} 31. Rh4 {[%emt 0:01:18]} Rxh4 {[%emt 0:00:10]} 32. Qxh4 {[%emt 0:00:06]} Rc8 {[%emt 0:00:06]} 33. Bg5 {[%emt 0:02:35]} Bf8 {[%emt 0:05:28]} 34. Be7 {[%emt 0:01:22]} Bg7 {[%emt 0:02:32]} 35. Bxb4 {[%emt 0:02:20]} Nf6 {[%emt 0:00:02]} 36. c4 {[%emt 0:00:50]} Qb7 {[%emt 0:01:34]} 37. Re1 {[%emt 0:00:22]} Rxc6 {[%emt 0:00:09]} 38. Rxe5+ {[%emt 0:00:36]} Re6 {[%emt 0:00:17]} 39. dxe6 {[%emt 0:00:09]} Qxb4 {[%emt 0:00:01]} 40. Qd4 {[%emt 0:00:39]} fxe6 {[%emt 0:01:37]} 41. Rxe6+ {[%emt 0:01:26]} Kf7 {[%emt 0:00:03]} 42. Re2 {[%emt 0:00:34]} Qb7 {[%emt 0:00:23]} 43. a3 {[%emt 0:00:30]} g5 {[%emt 0:00:47]} 44. Qe5 {[%emt 0:00:56]} g4 {[%emt 0:00:35]} 45. Qe6+ {[%emt 0:00:24]} Kg6 {[%emt 0:00:04]} 46. c5 {[%emt 0:00:28]} Qh1+ {[%emt 0:01:08]} 47. Re1 {[%emt 0:00:05]} Qh2 {[%emt 0:00:34]} 48. c6 {[%emt 0:00:45]} Qc7 {[%emt 0:00:22]} 49. Rc1 {[%emt 0:02:35]} Bh6 {[%emt 0:00:10]} 50. Rf1 {[%emt 0:00:46]} Bf4 {[%emt 0:00:06]} 51. Qc4 {[%emt 0:00:42]} Be5 {[%emt 0:00:49]} 52. Qd3+ {[%emt 0:00:32]} Kg7 {[%emt 0:00:14]} 53. Qf5 {[%emt 0:00:33]} g3 {[%emt 0:00:16]} 54. Re1 {[%emt 0:00:17]} Bd4 {[%emt 0:00:39]} 55. Qf3 {[%emt 0:01:18]} Be5 {[%emt 0:01:10]} 56. Qe2 {[%emt 0:00:30]} Bf4 {[%emt 0:00:45]} 57. Qxa6 {[%emt 0:00:19]} Qd6 {[%emt 0:00:25]} 58. Qc4 {[%emt 0:00:51]} Be5 {[%emt 0:00:26]} 59. c7 {[%emt 0:00:49]} Qxc7 {[%emt 0:00:38]} 60. Qxc7+ {[%emt 0:00:05]} Bxc7 {[%emt 0:00:01]} 61. Re7+ {[%emt 0:00:07]} Kg6 {[%emt 0:00:51]} 62. Rxc7 {[%emt 0:00:05]} Kf5 {[%emt 0:00:07]} 63. a4 {[%emt 0:00:35]} g2 {[%emt 0:00:11]} 64. Rc1 {[%emt 0:00:08]} Ke4 {[%emt 0:00:09]} 65. b4 {[%emt 0:00:41]} Nd5 {[%emt 0:00:15]} 66. Rg1 {[%emt 0:03:37]} Kf3 {[%emt 0:00:07]} 67. a5 {[%emt 0:01:07]} Nxb4 {[%emt 0:00:04]} 68. Kb2 {[%emt 0:04:13]} Kf2 {[%emt 0:00:26]} 69. Rxg2+ {[%emt 0:00:00]} Kxg2 {[%emt 0:00:05]} 70. Kb3 {[%emt 0:00:00]} Nc6 {[%emt 0:00:05]} 71. a6 {[%emt 0:00:00]} Kf3 {[%emt 0:00:06]} 72. Kc4 {[%emt 0:00:00]} Ke2 {[%emt 0:00:43]} 73. Kc5 {[%emt 0:00:00]} Na7 {[%emt 0:00:01]} 74. Kb6 {[%emt 0:00:00]} Nc8+ {[%emt 0:00:02]} 75. Kc7 {[%emt 0:00:00]} Na7 {[%emt 0:00:01]} 76. Kb7 {[%emt 0:00:00]} Nb5 {[%emt 0:00:05]} 77. Kb6 {[%emt 0:00:00]} Nd6 {[%emt 0:00:02]} 78. a7 {[%emt 0:00:37]} Nc8+ {[%emt 0:00:04]} 79. Kb7 {[%emt 0:00:07]} Nxa7 {[%emt 0:00:05]} 80. Kxa7 {[%emt 0:00:04]} 1/2-1/2

[Event "VIII Open Semana Santa 2024"]
[Site "San Vicente del Raspeig"]
[Date "2024.04.01"]
[Round "9.20"]
[White "Schulman, Julia"]
[Black "Martinez Sanchez, Antonio Manuel"]
[Result "0-1"]
[ECO "C06"]
[WhiteElo "1732"]
[BlackElo "2048"]
[Annotator "ChessBase"]
[PlyCount "134"]
[EventDate "2024.03.27"]
[EventType "swiss"]
[EventCountry "ESP"]
[SourceTitle "playchess.com"]
[Source "ChessBase"]
[SourceQuality "1"]
[TimeControl "5400+30"]

1. e4 {[%emt 0:05:54]} e6 {[%emt 0:00:20]} 2. d4 {[%emt 0:00:10]} d5 {[%emt 0:00:17]} 3. Nd2 {[%emt 0:00:13]} Nf6 {[%emt 0:00:20]} 4. e5 {[%emt 0:00:19]} Nfd7 {[%emt 0:00:13]} 5. Bd3 {[%emt 0:00:19]} c5 {[%emt 0:00:15]} 6. c3 {[%emt 0:00:11]} Nc6 {[%emt 0:00:17]} 7. Ne2 {[%emt 0:00:11]} cxd4 {[%emt 0:00:28]} 8. cxd4 {[%emt 0:00:25]} f6 {[%emt 0:00:10]} 9. exf6 {[%emt 0:00:24]} Nxf6 {[%emt 0:00:08]} 10. Nf3 {[%emt 0:00:29]} Bd6 {[%emt 0:00:15]} 11. O-O {[%emt 0:00:36]} O-O {[%emt 0:00:15]} 12. Re1 {[%emt 0:01:43]} Bd7 {[%emt 0:04:39]} 13. Ng3 {[%emt 0:01:27]} Qb6 {[%emt 0:04:41]} 14. a3 {[%emt 0:13:34]} Rae8 {[%emt 0:04:46]} 15. Rb1 {[%emt 0:06:06]} e5 {[%emt 0:08:15]} 16. dxe5 {[%emt 0:00:16]} Nxe5 {[%emt 0:00:30]} 17. Nxe5 {[%emt 0:00:48]} Bxe5 {[%emt 0:00:46]} 18. Be3 {[%emt 0:00:50]} d4 {[%emt 0:04:19]} 19. Bd2 {[%emt 0:03:46]} Ng4 {[%emt 0:02:13]} 20. f4 {[%emt 0:08:17]} Bb8 {[%emt 0:08:11]} 21. Rxe8 {[%emt 0:05:12]} Rxe8 {[%emt 0:00:13]} 22. h3 {[%emt 0:09:33]} Ne3 {[%emt 0:01:27]} 23. Bxe3 {[%emt 0:04:24]} Rxe3 {[%emt 0:02:23]} 24. Nf1 {[%emt 0:07:43]} Re8 {[%emt 0:01:06]} 25. Qh5 {[%emt 0:01:16]} g6 {[%emt 0:02:09]} 26. Qd5+ {[%emt 0:02:35]} Be6 {[%emt 0:00:50]} 27. Qb5 {[%emt 0:01:11]} Qxb5 {[%emt 0:02:57]} 28. Bxb5 {[%emt 0:00:06]} Rd8 {[%emt 0:00:05]} 29. Re1 {[%emt 0:02:28]} Kf7 {[%emt 0:01:28]} 30. Nd2 {[%emt 0:01:32]} Bf5 {[%emt 0:03:42]} 31. g4 {[%emt 0:01:46]} Bxf4 {[%emt 0:02:09]} 32. Rf1 {[%emt 0:03:07]} Bxd2 {[%emt 0:01:19]} 33. gxf5 {[%emt 0:00:17]} g5 {[%emt 0:00:38]} 34. Rd1 {[%emt 0:01:42]} Be3+ {[%emt 0:00:15]} 35. Kg2 {[%emt 0:00:20]} Kf6 {[%emt 0:00:20]} 36. Bd3 {[%emt 0:00:13]} Rc8 {[%emt 0:00:56]} 37. Kf3 {[%emt 0:00:50]} h5 {[%emt 0:00:38]} 38. Rh1 {[%emt 0:00:53]} Rc5 {[%emt 0:01:43]} 39. Rf1 {[%emt 0:01:36]} Ke5 {[%emt 0:03:01]} 40. Kg3 {[%emt 0:01:32]} Rc1 {[%emt 0:02:24]} 41. Rf3 {[%emt 0:03:50]} Rg1+ {[%emt 0:00:42]} 42. Kh2 {[%emt 0:00:15]} Rd1 {[%emt 0:00:09]} 43. f6 {[%emt 0:03:59]} Rd2+ {[%emt 0:00:30]} 44. Kh1 {[%emt 0:00:33]} g4 {[%emt 0:01:21]} 45. Rf5+ {[%emt 0:02:44]} Ke6 {[%emt 0:00:22]} 46. f7 {[%emt 0:02:49]} Bh6 {[%emt 0:00:34]} 47. Be4 {[%emt 0:01:39]} Bf8 {[%emt 0:03:25]} 48. Rxh5 {[%emt 0:01:13]} gxh3 {[%emt 0:01:56]} 49. Bd5+ {[%emt 0:00:19]} Kd6 {[%emt 0:02:53]} 50. b3 {[%emt 0:01:45]} Rf2 {[%emt 0:01:37]} 51. Bc4 {[%emt 0:01:27]} Bg7 {[%emt 0:05:47]} 52. Rxh3 {[%emt 0:00:22]} Ke5 {[%emt 0:00:40]} 53. Rh7 {[%emt 0:00:21]} Bf8 {[%emt 0:00:29]} 54. a4 {[%emt 0:00:23]} Ke4 {[%emt 0:00:54]} 55. Rh4+ {[%emt 0:00:27]} Ke3 {[%emt 0:00:53]} 56. Rh3+ {[%emt 0:00:18]} Rf3 {[%emt 0:00:25]} 57. Rh8 {[%emt 0:00:38]} Bc5 {[%emt 0:00:39]} 58. Re8+ {[%emt 0:00:09]} Kd2 {[%emt 0:04:23]} 59. Kg2 {[%emt 0:00:10]} Rf6 {[%emt 0:00:47]} 60. Re2+ {[%emt 0:01:25]} Kc3 {[%emt 0:00:32]} 61. Re1 {[%emt 0:00:50]} d3 {[%emt 0:00:49]} 62. Rc1+ {[%emt 0:00:48]} Kd2 {[%emt 0:00:57]} 63. Rb1 {[%emt 0:00:29]} Kc2 {[%emt 0:00:44]} 64. Ra1 {[%emt 0:00:46]} d2 {[%emt 0:00:28]} 65. Ra2+ {[%emt 0:00:20]} Kc3 {[%emt 0:00:15]} 66. Ra1 {[%emt 0:00:30]} Kb2 {[%emt 0:00:12]} 67. Rd1 {[%emt 0:00:42]} Kc2 {[%emt 0:00:11]} 0-1